[Event "FIDE WSTC Open 50 2025"]
[Site "Prague"]
[Date "2025.02.21"]
[Round "5.2"]
[White "Godena, Michele"]
[Black "Kotsur, Pavel"]
[Result "1/2-1/2"]
[Annotator "TA"]
[ECO "C07"]
[WhiteElo "2439"]
[BlackElo "2478"]
[PlyCount "62"]
[EventDate "2025.02.17"]
[EventType "team-tourn"]
[EventCountry "CZE"]
[SourceTitle "playchess.com"]
[Source "ChessBase"]
[SourceQuality "1"]
[TimeControl "40/5400+30:1800+30"]

{[%evp 14,62,22,11,1,0,0,0,0,0,0,-3,0,0,5,0,0,0,0,0,0,0,0,0,0,0,0,0,0,0,0,0,0,0,30,0,0,-6,6,6,5,0,0,0,5,5,10,4,0,0,11]} 1. e4 {[%emt 0:00:05]} e6 {[%emt 0:00:21]} 2. d4 {[%emt 0:00:09]} d5 {[%emt 0:00:05]} 3. Nd2 {[%emt 0:00:27]} c5 {[%emt 0:00:24]} 4. Ngf3 {[%emt 0:01:04]} cxd4 {[%emt 0:00:52]} 5. Nxd4 {[%emt 0:00:33]} Nc6 {[%emt 0:00:36]} 6. Bb5 {[%emt 0:00:35]} Bd7 {[%emt 0:00:05]} 7. Nxc6 {[%emt 0:00:08]} bxc6 {[%emt 0:01:05]} 8. Bd3 {[%emt 0:00:10]} Bd6 {[%emt 0:00:08] C07: French Tarrasch: 3...c5, 4 Ngf3 and 4 exd5 Qxd5.} 9. c4 {[%emt 0:20:38]} Nf6 {[%emt 0:08:47]} 10. O-O {[%emt 0:03:35]} Qc7 {[%emt 0:07:31]} 11. h3 {[%emt 0:02:06]} O-O {[%emt 0:04:17] Successful Defense Black} 12. Qc2 $146 {[%emt 0:05:43]} ({Predecessor:} 12. Qe2 Rae8 13. c5 Bh2+ 14. Kh1 Bf4 15. Nf3 dxe4 16. Bxe4 e5 17. Bc2 e4 18. Bxf4 Qxf4 {0-1 Sek,K (2446)-Vallejo Pons,F (2704) Wch Rapid Moscow 2019 (1)}) 12... dxe4 {[%emt 0:24:20]} 13. Bxe4 {[%emt 0:20:14]} Rab8 {[%emt 0:03:58]} 14. b3 {[%emt 0:17:41]} Be5 {[%emt 0:10:21]} 15. Bb2 {[%emt 0:01:40]} Bxb2 {[%emt 0:00:16]} 16. Qxb2 {[%emt 0:00:04]} c5 {[%emt 0:00:03]} 17. Rad1 {[%emt 0:01:29]} a5 {[%emt 0:03:26][%cal Ba7a5,Ba5a4][%mdl 32]} 18. Rfe1 {[%emt 0:02:18]} a4 {[%emt 0:01:08]} 19. Bf3 {[%emt 0:04:50]} Rfd8 {[%emt 0:02:22]} 20. Qe5 {[%emt 0:06:20]} Rdc8 {[%emt 0:09:22]} 21. g4 {[%emt 0:03:27]} h6 {[%emt 0:00:55]} 22. h4 {[%emt 0:00:18]} axb3 {[%emt 0:03:31]} 23. axb3 {[%emt 0:00:09]} Be8 {[%emt 0:05:34]} 24. Qxc7 {[%emt 0:02:27]} Rxc7 {[%emt 0:00:02] The position is equal.} 25. g5 {[%emt 0:00:13]} hxg5 {[%emt 0:03:17]} 26. hxg5 {[%emt 0:00:05]} Nd7 {[%emt 0:00:17]} 27. g6 {[%emt 0:01:03]} f6 {[%emt 0:01:42]} 28. Rxe6 {[%emt 0:00:49]} Bxg6 {[%emt 0:04:18]} 29. Bd5 {[%emt 0:02:53] [#] aiming for Rc6+.} Kf8 {[%emt 0:00:10]} 30. Rde1 {[%emt 0:00:22]} Nb6 {[%emt 0:01:57]} 31. Bg2 {[%emt 0:00:37]} Bf7 {[%emt 0:01:11] A rather calm draw.   Weighted Error Value: White=0.03 (flawless) /Black=0.02 (flawless)   Inaccurate:     	White=1     	Black=1      OK:         	White=9     	Black=11} 1/2-1/2

[Event "FIDE WSTC Open 50 2025"]
[Site "Prague"]
[Date "2025.02.21"]
[Round "5.4"]
[White "D'Amore, Carlo"]
[Black "Tikzhanov, Yerlan"]
[Result "1/2-1/2"]
[Annotator "TA"]
[ECO "A04"]
[WhiteElo "2362"]
[BlackElo "2323"]
[PlyCount "104"]
[EventDate "2025.02.17"]
[EventType "team-tourn"]
[EventCountry "CZE"]
[SourceTitle "playchess.com"]
[Source "ChessBase"]
[SourceQuality "1"]
[TimeControl "40/5400+30:1800+30"]

{[%evp 9,104,-6,4,-5,9,10,10,8,38,-5,37,8,72,67,43,-13,12,0,25,5,66,62,93,77,64,-16,0,0,0,-53,0,0,0,0,0,0,0,-62,-76,-64,-56,0,0,-117,-92,-128,-114,-145,-135,-141,-134,-199,-196,-297,-160,-137,0,0,0,0,0,-8,0,-172,-66,-172,-66,-66,-66,-66,-66,-66,-66,-66,-66,-66,-52,-52,-52,-52,-52,-52,-52,-52,-52,-52,-52,-52,-52,-52,-52,-52,-52,-52,-52,-52,0]} 1. Nf3 {[%emt 0:00:14]} c5 {[%emt 0:00:14]} 2. g3 {[%emt 0:03:37]} Nc6 {[%emt 0:00:31]} 3. Bg2 {[%emt 0:00:08]} e5 {[%emt 0:00:21]} 4. e4 {[%emt 0:03:44]} Nge7 {[%emt 0:01:31]} 5. Nc3 {[%emt 0:01:32]} d6 {[%emt 0:00:26]} 6. d3 {[%emt 0:00:29] B30: Sicilian: 2...Nc6 3 Bb5, lines without ...g6.} g6 {[%emt 0:00:34]} 7. Nd2 {[%emt 0:04:19]} Bg7 {[%emt 0:00:41]} 8. Nc4 {[%emt 0:00:23] The position is equal.} a6 {[%emt 0:01:34] Dodges Nb5} 9. O-O {[%emt 0:02:59]} O-O {[%emt 0:03:18]} 10. f4 {[%emt 0:00:13][%cal Of4f5]} Nd4 $146 {[%emt 0:05:54]} (10... Be6 $11) (10... b5 11. Ne3 exf4 12. gxf4 Nd4 13. f5 Nec6 14. Ncd5 Ne5 15. f6 Bh8 16. Ne7+ {1-0 Perez Gormaz,M (2413)-Blanco Gramajo,C (2065) Titled Tuesday intern op 19th Jan blitz 2021 (1)}) 11. a4 $16 {[%emt 0:08:50]} Be6 {[%emt 0:07:57]} 12. Ne3 {[%emt 0:00:33]} (12. Nd5 $14) 12... Rb8 {[%emt 0:03:01]} (12... exf4 {with more complications.} 13. Rxf4 b5 14. axb5 axb5 15. Rxa8 Qxa8 16. Nf5 gxf5 17. exf5 Bd5) 13. Ncd5 {[%emt 0:03:35]} Nxd5 {[%emt 0:04:30]} 14. exd5 {[%emt 0:00:27]} Bc8 {[%emt 0:02:03]} (14... exf4 $1 $11 15. dxe6 fxe3 16. exf7+ Kh8 17. Bxe3 Nf5) 15. fxe5 $14 {[%emt 0:26:48]} Bxe5 {[%emt 0:18:44]} 16. c3 {[%emt 0:08:32]} Nf5 {[%emt 0:00:36]} 17. Nxf5 {[%emt 0:01:46]} (17. Nc4 $14) 17... Bxf5 $11 {[%emt 0:00:13]} 18. Rxf5 {[%emt 0:00:08]} gxf5 {[%emt 0:00:24]} 19. Qf3 {[%emt 0:00:05]} (19. Bh3 $1 $11) 19... Qf6 {[%emt 0:03:57]} (19... Re8 $15 20. Bd2 Qb6) 20. Bh3 {[%emt 0:00:28]} f4 {[%emt 0:00:45]} 21. gxf4 {[%emt 0:00:40] and Qg3+ should not be overlooked} Qg6+ {[%emt 0:07:44]} 22. Kh1 {[%emt 0:02:06]} Bg7 $36 {[%emt 0:00:30][%mdl 2048] Black has good play.} 23. Be3 {[%emt 0:03:38]} ({White should try} 23. f5 $11 Qf6 24. Qg3) 23... Qf6 {[%emt 0:02:02]} (23... Qxd3 24. Rg1 f6 25. Qg2 $11) 24. d4 {[%emt 0:03:08]} c4 {[%emt 0:01:26]} 25. Rg1 {[%emt 0:01:10]} (25. Bf2 $15) 25... Kh8 {[%emt 0:00:28]} 26. a5 {[%emt 0:00:19]} (26. Rg5 $1 $11 {remains equal.}) 26... Bh6 {[%emt 0:00:46]} 27. Bf1 {[%emt 0:00:13]} Rbc8 {[%emt 0:02:38]} 28. Rg3 {[%emt 0:01:08]} Rg8 {[%emt 0:02:10]} 29. Rh3 {[%emt 0:02:25]} (29. Rxg8+ Rxg8 30. Bxc4 Qd8) 29... Rg7 $1 {[%emt 0:07:33]} 30. Be2 {[%emt 0:00:18]} (30. Bf2 $17) 30... Rcg8 $19 {[%emt 0:00:40][%cal Of6f4]} 31. Bxc4 {[%emt 0:02:37] [#]} (31. Rg3 $142) 31... Bxf4 $1 {[%emt 0:04:11]} 32. Bd3 $17 {[%emt 0:02:15] [#]} (32. Qxf4 Qxf4 33. Bd3 Qxe3) 32... Qg5 {[%emt 0:01:30]} 33. Rg3 $1 $11 {[%emt 0:03:57] Active counter play!} Bxe3 {[%emt 0:06:22]} 34. Rxg5 {[%emt 0:00:05]} Bxg5 {[%emt 0:00:06]} 35. h3 {[%emt 0:01:04]} Bc1 {[%emt 0:02:06] ( -> ...Rg1+)} 36. h4 $2 {[%emt 0:02:51] [#]} (36. Qf6 $11 {and White has nothing to worry.}) 36... Rg1+ $1 $19 {[%emt 0:07:23]} (36... Bxb2 37. Qf6 $11) 37. Kh2 {[%emt 0:00:04] [#]} R8g2+ {[%emt 0:01:48]} (37... R8g4 $1 $19 {and ...Kg7 would now be decisive} 38. Qxf7 (38. Qf6+ Kg8 $19) 38... Bf4+ (38... Bxb2 39. Qxh7#) 39. Qxf4 Rxf4 40. Kxg1 Rxh4) 38. Qxg2 $15 {[%emt 0:00:54] Black is slightly better.} Rxg2+ {[%emt 0:00:06]} 39. Kxg2 {[%emt 0:00:03]} Bxb2 {[%emt 0:00:05][%mdl 4096] Endgame KB-KB} 40. Bf5 {[%emt 0:00:19]} Bxc3 {[%emt 0:00:18]} 41. Bc8 {[%emt 0:30:06]} Bxa5 {[%emt 0:30:08]} 42. Bxb7 {[%emt 0:00:02]} Bb6 {[%emt 0:00:11]} 43. Bxa6 {[%emt 0:00:05]} Bxd4 {[%emt 0:00:07]} 44. Kf3 {[%emt 0:04:48]} Kg7 {[%emt 0:00:34]} 45. Kf4 {[%emt 0:01:32]} Kf6 {[%emt 0:00:39]} 46. h5 {[%emt 0:01:43]} h6 {[%emt 0:00:31]} 47. Bd3 {[%emt 0:00:12]} Bc3 {[%emt 0:00:28]} 48. Bh7 {[%emt 0:00:14]} Bd2+ {[%emt 0:00:10]} 49. Kg4 {[%emt 0:00:28]} Ke5 {[%emt 0:00:14]} 50. Bg8 {[%emt 0:00:06]} f5+ {[%emt 0:00:19]} ({Don't play} 50... Kxd5 51. Bxf7+ Ke4 52. Be8 $11) 51. Kf3 {[%emt 0:00:07]} Kf6 {[%emt 0:00:15]} 52. Be6 {[%emt 0:00:23]} Ke5 {[%emt 0:00:23] Weighted Error Value: White=0.25 (precise) /Black=0.20 (precise)   Loses game:     	White=1     	---        Mistake:       	White=8     	Black=7      Inaccurate:     	White=4     	Black=3      OK:         	White=11    	Black=17     Best:        	White=5     	Black=3      Strong:       	White=1     	Black=1} (52... Bc3 $15) 1/2-1/2

[Event "FIDE WSTC Open 50 2025"]
[Site "Prague"]
[Date "2025.02.21"]
[Round "5.5"]
[White "Polak, Tomas"]
[Black "Ftacnik, Lubomir"]
[Result "1/2-1/2"]
[Annotator "TA"]
[ECO "D85"]
[WhiteElo "2463"]
[BlackElo "2438"]
[PlyCount "58"]
[EventDate "2025.02.17"]
[EventType "team-tourn"]
[EventCountry "CZE"]
[SourceTitle "playchess.com"]
[Source "ChessBase"]
[SourceQuality "1"]
[TimeControl "40/5400+30:1800+30"]

{[%evp 9,58,17,49,15,19,17,23,15,12,27,10,10,8,12,16,0,16,42,43,33,31,0,0,0,0,0,0,0,0,0,0,0,15,10,56,57,62,57,61,62,66,46,65,62,60,57,29,0,0,0,0]} 1. d4 {[%emt 0:00:05]} Nf6 {[%emt 0:00:10][%cal Bg8f6,Bf6d5,Bd5c3][%mdl 32]} 2. c4 {[%emt 0:00:06]} g6 {[%emt 0:00:10]} 3. Nc3 {[%emt 0:00:10]} d5 {[%emt 0:00:10]} 4. cxd5 {[%emt 0:00:16]} Nxd5 {[%emt 0:00:03]} 5. Bd2 {[%emt 0:00:19][%cal Bc1d2,Bd2c3,Bc3d4][%mdl 32]} c5 {[%emt 0:03:04]} 6. e4 {[%emt 0:03:23] D85: Exchange Grünfeld: Unusual White 7th moves and lines with 7 Nf3.} Nxc3 {[%emt 0:00:40]} 7. Bxc3 {[%emt 0:00:07]} cxd4 {[%emt 0:01:04]} 8. Bxd4 {[%emt 0:00:08] White has an edge.} (8. Qxd4 {simplifies} Qxd4 9. Bxd4 f6 10. Be3) 8... e5 {[%emt 0:00:12]} 9. Bxe5 {[%emt 0:00:51]} Bb4+ {[%emt 0:00:14]} 10. Bc3 {[%emt 0:00:05]} Bxc3+ {[%emt 0:00:06]} 11. bxc3 {[%emt 0:00:27]} Qa5 {[%emt 0:00:34]} 12. Qd2 {[%emt 0:00:30]} O-O {Black sacrificed a pawn} 13. Bc4 {[%emt 0:00:56]} Nd7 {[%emt 0:05:39][%cal Bb8d7,Bd7c5,Bc5d3,Bd3b2][%mdl 32]} 14. Ne2 {[%emt 0:08:02]} Nc5 {[%emt 0:20:20]} 15. f3 $146 {[%emt 0:11:53]} (15. Qe3 Re8 16. f3 Be6 17. Bxe6 Nxe6 18. O-O Rac8 19. Rfc1 Rc4 20. Rd1 Rec8 21. Rd5 {1-0 Vanduyfhuys,D (2073)-Gomez Barrera,J (2219) Wch U20 Girls 38th 2022 (4)}) 15... Rd8 {[%emt 0:03:17]} 16. Qe3 {[%emt 0:08:11]} Be6 {[%emt 0:01:41] Repels Bd5} 17. Bxe6 {[%emt 0:00:14]} Nd3+ {[%emt 0:01:01]} 18. Kf1 $1 {[%emt 0:00:11]} fxe6 {[%emt 0:00:15]} 19. h4 {[%emt 0:27:45][%cal Oh4h5]} Nb2 {[%emt 0:27:39]} 20. Kf2 Nc4 {[%emt 0:04:41]} 21. Qg5 {[%emt 0:01:53]} Rd2 (21... Qxg5 $11 {is more appropriate.} 22. hxg5 Rd2) 22. Qxa5 $14 {[%emt 0:10:19]} Nxa5 {[%emt 0:00:32]} 23. Rhd1 $1 {[%emt 0:00:29]} Rad8 {[%emt 0:02:06]} 24. Ke1 {[%emt 0:01:58]} Nc4 {[%emt 0:05:38]} 25. Rxd2 {[%emt 0:03:47]} Rxd2 {[%emt 0:00:17]} 26. Rb1 {[%emt 0:00:05] [#] and Rb4 should not be overlooked} Rxa2 {[%emt 0:10:48]} 27. Rxb7 {[%emt 0:03:25]} e5 {[%emt 0:01:34] Dodges Nf4} 28. h5 {[%emt 0:00:30]} gxh5 {[%emt 0:00:30]} 29. Ng3 {[%emt 0:00:35]} h4 {[%emt 0:02:47] Weighted Error Value: White=0.06 (flawless) /Black=0.06 (flawless)   Mistake:       	---       	Black=1      Inaccurate:     	White=2     	---        OK:         	White=7     	Black=15     Best:        	White=4     	---        Strong:       	White=2     	---} 1/2-1/2

[Event "FIDE WSTC Open 50 2025"]
[Site "Prague"]
[Date "2025.02.21"]
[Round "5.6"]
[White "Mrva, Martin"]
[Black "Obsivac, Josef"]
[Result "1-0"]
[Annotator "TA"]
[ECO "C02"]
[WhiteElo "2394"]
[BlackElo "2262"]
[PlyCount "79"]
[EventDate "2025.02.17"]
[EventType "team-tourn"]
[EventCountry "CZE"]
[SourceTitle "playchess.com"]
[Source "ChessBase"]
[SourceQuality "1"]
[TimeControl "40/5400+30:1800+30"]

{[%evp 15,79,5,0,0,0,0,0,0,0,-2,0,-3,0,-25,-11,-14,45,45,38,41,48,41,41,-38,-41,-41,-42,-35,-43,-48,27,18,39,32,45,35,31,30,86,87,87,83,76,76,306,305,293,254,350,327,396,386,415,395,369,369,364,379,578,570,29966,29969,29968,29972,4810,4810]} 1. e4 {[%emt 0:00:04]} e6 {[%emt 0:00:06]} 2. d4 {[%emt 0:00:10]} d5 {[%emt 0:00:05]} 3. e5 {[%emt 0:00:09]} c5 {[%emt 0:00:14][%cal Bc7c5,Bc5c4][%mdl 32]} 4. c3 {[%emt 0:00:06]} Nc6 {[%emt 0:00:12]} 5. Nf3 {[%emt 0:00:06]} Qb6 {[%emt 0:00:29]} 6. a3 {[%emt 0:00:40]} c4 {[%emt 0:00:36]} 7. Nbd2 {[%emt 0:00:21]} Na5 {[%emt 0:00:28]} 8. Rb1 {[%emt 0:02:25]} Bd7 {[%emt 0:00:13]} 9. h4 {[%emt 0:00:15] C02: French: Advance Variation.} O-O-O {[%emt 0:01:10]} 10. b4 {[%emt 0:02:23][%cal Of3g5]} cxb3 {[%emt 0:01:48]} 11. Nxb3 {[%emt 0:00:08] The position is equal.} Ba4 {[%emt 0:00:29]} 12. Nfd2 {[%emt 0:00:29]} Kb8 {[%emt 0:01:04]} 13. Qc2 {[%emt 0:05:03]} Rc8 {[%emt 0:00:36]} 14. Qb2 {[%emt 0:04:57]} Nxb3 {[%emt 0:15:47]} (14... Bxb3 $5 15. Nxb3 Nxb3 16. Qxb3 Qxb3 (16... Rxc3 17. Qxc3 Qxb1 18. Bd3 $11) 17. Rxb3 Ne7 $14) 15. Nxb3 {[%emt 0:00:07]} Qxb3 {[%emt 0:05:34]} (15... Rc6 $11) 16. Qxb3 $14 {[%emt 0:00:07]} Bxb3 {[%emt 0:00:05]} 17. Rxb3 {[%emt 0:00:05]} Ne7 {[%emt 0:00:48]} 18. Rh3 $146 {[%emt 0:32:05]} ({Predecessor:} 18. h5 Nc6 19. Rb1 Be7 20. Rh3 Bd8 21. Rf3 f5 22. exf6 Bxf6 23. h6 e5 24. Ba6 {1-0 Mendonca,L (2631)-Harika,D (2493) Chennai-B 2024 (2)}) 18... Nc6 {[%emt 0:01:16][%cal Oc6d4]} 19. Rf3 {[%emt 0:01:31] [#]} ({White should try} 19. Rb1 $14) 19... Nxd4 $1 $15 {[%emt 0:14:00]} 20. cxd4 {[%emt 0:13:00]} Rxc1+ {[%emt 0:00:07] Black attacks} 21. Kd2 {[%emt 0:00:43]} Rc7 {[%emt 0:00:14]} 22. Rbc3 {[%emt 0:00:52]} Rxc3 {[%emt 0:12:46]} ({Black should try} 22... Rd7 $15) 23. Kxc3 $11 {[%emt 0:00:13]} Bxa3 $15 {[%emt 0:00:33][%mdl 4096] Endgame KRB-KRB. Black is two pawns up.} 24. Kb3 $1 {[%emt 0:00:53]} Be7 {[%emt 0:05:55]} 25. Rxf7 {[%emt 0:00:46]} Bxh4 {[%emt 0:00:11]} 26. Bb5 {[%emt 0:12:47][%cal Ob5d7]} h5 {[%emt 0:07:09]} (26... Rc8 $11 {remains equal.}) 27. Bd7 $16 {[%emt 0:04:32][%mdl 1024] White has strong compensation. White is more active.} Rh6 {[%emt 0:02:41] [#]} 28. Kb4 $1 {[%emt 0:08:10][%cal Ob4c5]} Rg6 {[%emt 0:10:36]} 29. Kc5 {[%emt 0:02:15]} Bd8 $2 {[%emt 0:14:01] This costs Black the game.} (29... a5 $16) 30. Kd6 $18 {[%emt 0:01:07]} Bc7+ {[%emt 0:00:29]} 31. Ke7 {[%emt 0:00:09] Hoping for Rf8+.} a6 {[%emt 0:00:42]} 32. Bxe6 {[%emt 0:01:11]} Bb6 {[%emt 0:02:45]} 33. Bxd5 {[%emt 0:04:14]} Bxd4 {[%emt 0:00:12]} 34. e6 {[%emt 0:00:28]} ({Not} 34. f4 Rb6 35. Rxg7 Ka7 $18) 34... Bc5+ {[%emt 0:02:54]} 35. Kd8 {[%emt 0:00:14]} Bb6+ {[%emt 0:01:03]} 36. Ke8 {[%emt 0:02:18]} Bc7 {[%emt 0:00:19]} (36... Bc5 {was necessary.} 37. Rxb7+ (37. Bxb7 Rxe6+ 38. Kd7 Rd6+ 39. Ke8 Re6+ 40. Kd7 Rd6+ 41. Ke8 Re6+ $17) (37. e7 Rg5 $16) 37... Kc8) 37. Kd7 {[%emt 0:00:18] Threatening mate with Rf8+.} Rg5 {[%emt 0:00:43]} 38. Rf8+ {[%emt 0:00:14]} Ka7 {[%emt 0:00:05]} 39. Kxc7 {[%emt 0:00:13]} Rxd5 {[%emt 0:00:12]} 40. e7 {[%emt 0:00:05] Weighted Error Value: White=0.05 (flawless) /Black=0.57  Loses game:     	---       	Black=1      Mistake:       	White=1     	Black=4      Inaccurate:     	---       	Black=2      OK:         	White=12    	Black=11     Best:        	White=5     	Black=4      Strong:       	White=2     	---        Brilliant:      	---       	Black=1} 1-0

[Event "FIDE WSTC Open 50 2025"]
[Site "Prague"]
[Date "2025.02.21"]
[Round "5.7"]
[White "Holemar, David"]
[Black "Stohl, Igor"]
[Result "1/2-1/2"]
[Annotator "TA"]
[ECO "A46"]
[WhiteElo "2150"]
[BlackElo "2409"]
[PlyCount "45"]
[EventDate "2025.02.17"]
[EventType "team-tourn"]
[EventCountry "CZE"]
[SourceTitle "playchess.com"]
[Source "ChessBase"]
[SourceQuality "1"]
[TimeControl "40/5400+30:1800+30"]

{[%evp 13,21,0,0,-30,-22,-24,-20,-24,0,-18]} 1. d4 {[%emt 0:00:03]} Nf6 {[%emt 0:00:40]} 2. Nf3 {[%emt 0:00:09]} d5 {[%emt 0:00:24]} 3. c4 {[%emt 0:01:26]} e6 {[%emt 0:01:30]} 4. e3 {[%emt 0:01:40]} a6 {[%emt 0:03:10]} 5. Nc3 {[%emt 0:02:20]} c5 {[%emt 0:00:52]} 6. a3 {[%emt 0:06:50]} dxc4 {[%emt 0:02:54]} 7. Bxc4 {[%emt 0:00:12]} b5 {[%emt 0:00:27]} 8. Bb3 {[%emt 0:01:18] D40: Queen's Gambit Declined: Semi-Tarrasch with 5 e3.} Bb7 {[%emt 0:00:44]} 9. O-O {[%emt 0:00:24]} Nbd7 {[%emt 0:04:42]} 10. Qe2 {[%emt 0:09:09]} Be7 {[%emt 0:18:18]} 11. Rd1 {[%emt 0:00:15] Not much happened in this game.   Weighted Error Value: White=0.10 (very precise) /Black=0.08 (flawless)   OK:         	White=1     	Black=1} {Predecessor:} O-O $146 12. dxc5 Qc7 13. e4 Bxc5 14. Be3 Rfd8 15. Bc2 Bxe3 16. Qxe3 Rac8 17. Rd4 Ng4 18. Qe2 Nde5 19. Nxe5 Nxe5 20. Rxd8+ Rxd8 21. Bb3 h6 22. Rd1 Rxd1+ 23. Bxd1 {½-½ Indjic,A (2636)-Halkias,S (2514) EU-ch 23rd Vrnjacka Banja 2023 (5)} 1/2-1/2

[Event "FIDE WSTC Open 50 2025"]
[Site "Prague"]
[Date "2025.02.21"]
[Round "5.8"]
[White "Motuz, Karol"]
[Black "Skacelik, Petr"]
[Result "1-0"]
[Annotator "RC"]
[ECO "A39"]
[WhiteElo "2293"]
[BlackElo "2132"]
[PlyCount "55"]
[EventDate "2025.02.17"]
[EventType "team-tourn"]
[EventCountry "CZE"]
[SourceTitle "playchess.com"]
[Source "ChessBase"]
[SourceQuality "1"]
[TimeControl "40/5400+30:1800+30"]

1. c4 {[%emt 0:00:04]} c5 {[%emt 0:00:07]} 2. Nf3 {[%emt 0:00:37]} Nc6 {[%emt 0:00:07]} 3. g3 {[%emt 0:00:46]} g6 {[%emt 0:00:06]} 4. Bg2 {[%emt 0:00:22]} Bg7 {[%emt 0:00:07]} 5. O-O {[%emt 0:00:29]} Nf6 {[%emt 0:00:48]} 6. Nc3 {[%emt 0:01:13]} O-O {[%emt 0:00:17]} 7. d4 {[%emt 0:01:09]} d6 {[%emt 0:00:53]} 8. dxc5 {[%emt 0:02:10]} dxc5 {[%emt 0:00:09]} 9. Be3 {[%emt 0:01:32]} Be6 {[%emt 0:00:07]} 10. Qa4 {[%emt 0:02:07]} Nd4 {[%emt 0:07:22]} 11. Rac1 {[%emt 0:02:42]} Nd7 {[%emt 0:09:02]} 12. b3 {[%emt 0:42:01]} Bg4 {[%emt 0:20:43]} 13. Rfd1 {[%emt 0:02:47]} e5 {[%emt 0:02:23]} 14. h3 {[%emt 0:03:00]} Be6 {[%emt 0:07:20]} 15. Ng5 {[%emt 0:04:49]} Qc8 {[%emt 0:04:34]} 16. Nxe6 {[%emt 0:02:52]} fxe6 {[%emt 0:05:04]} 17. Bd2 {[%emt 0:03:54]} a6 {[%emt 0:05:48]} 18. Be1 {[%emt 0:03:05]} Rb8 {[%emt 0:03:41]} 19. e3 {[%emt 0:04:39]} b5 {[%emt 0:00:39]} 20. cxb5 {[%emt 0:00:53]} axb5 {[%emt 0:00:06]} 21. Qa7 {[%emt 0:01:07]} b4 {[%emt 0:08:38]} 22. exd4 {[%emt 0:01:18]} bxc3 {[%emt 0:00:06]} 23. dxc5 {[%emt 0:00:47]} Rf7 {[%emt 0:01:50]} 24. Rxc3 {[%emt 0:03:02]} e4 {[%emt 0:00:23]} 25. c6 {[%emt 0:03:59]} Nf8 {[%emt 0:04:11]} 26. c7 {[%emt 0:01:35]} Rb7 {[%emt 0:00:23]} 27. Qxb7 {[%emt 0:00:32]} Qxb7 {[%emt 0:00:16]} 28. c8=Q 1-0